fUST/lending_fUST_20250613
["ID","MTS","AMOUNT","RATE_DAILY","PERIOD"]
[365636943,1749815432844,-460.0,0.00021095,4]
[365636944,1749815432855,-460.0,0.00021095,4]
[365636945,1749815432864,-255.28069853,0.00021095,4]
[365636946,1749815432874,-460.0,0.00021095,4]
[365636947,1749815432883,-460.0,0.00021095,4]
[365636948,1749815432893,-381.10967265,0.00021095,4]
[365636949,1749815432903,-460.0,0.00021095,4]
[365636950,1749815432912,-460.0,0.00021095,4]
[365636951,1749815432922,-460.0,0.00021095,4]
[365636952,1749815432932,-460.0,0.00021095,4]
[365636953,1749815432942,-460.0,0.00021095,4]
[365636954,1749815432951,-460.0,0.00021095,4]
[365636955,1749815432961,-440.0,0.00021095,4]
[365636956,1749815432971,-460.0,0.00021095,4]
[365636957,1749815432981,-460.0,0.00021095,4]
[365636958,1749815432991,-460.0,0.00021095,4]
[365636959,1749815433001,-420.98183458,0.00021095,4]
[365636960,1749815433010,-593.59,0.00021095,4]
[365636961,1749815433020,-430.0,0.00021095,4]
[365636962,1749815433031,-511.58,0.00021095,4]
[365636963,1749815433041,-460.0,0.00021095,4]
[365636964,1749815433052,-460.0,0.00021095,4]
[365636965,1749815433063,-1327.7,0.00021095,4]
[365636966,1749815433084,-460.0,0.00021095,4]
[365636967,1749815433100,-669.49,0.00021095,4]
[365636968,1749815433115,-669.49,0.00021095,4]
[365636969,1749815433132,-669.49,0.00021095,4]
[365636970,1749815433145,-669.49,0.00021095,4]
[365636971,1749815433158,-460.0,0.00021095,4]
[365636972,1749815433172,-669.49,0.00021095,4]
[365636973,1749815433186,-460.0,0.00021095,4]
[365636974,1749815433201,-669.49,0.00021095,4]
[365636975,1749815433216,-669.49,0.00021095,4]
[365636976,1749815433229,-431.48573508,0.00021095,4]
[365636977,1749815433242,-460.0,0.00021095,4]
[365636978,1749815433257,-460.0,0.00021095,4]
[365636979,1749815433272,-460.0,0.00021095,4]
[365636980,1749815433286,-903.85,0.00021095,4]
[365636981,1749815433299,-460.0,0.00021095,4]
[365636982,1749815433313,-440.0,0.00021095,4]
[365636983,1749815433327,-594.39225024,0.00021095,4]
[365636984,1749815433342,-1473.46,0.00021095,4]
[365636985,1749815433356,-460.0,0.00021368,4]
[365636986,1749815433369,-460.0,0.00021368,4]
[365636987,1749815433383,-3811.09,0.00021368,4]
[365636988,1749815433398,-784.87,0.00021368,4]
[365636989,1749815433416,-669.49,0.00021368,4]
[365636990,1749815433428,-669.49,0.00021368,4]
[365636991,1749815433439,-669.49,0.00021368,4]
[365636992,1749815433451,-669.49,0.00021368,4]
[365636993,1749815433464,-1002.43,0.00021368,4]
[365636994,1749815433477,-463.46343709,0.00021369,4]
[365636995,1749815433490,-460.0,0.00021369,4]
[365636996,1749815433502,-460.0,0.00021369,4]
[365636997,1749815433516,-460.0,0.00021369,4]
[365636998,1749815433529,-333.93507252,0.00021369,4]
[365636999,1749815433543,-460.0,0.00021369,4]
[365637000,1749815433557,-1085.57,0.00021369,4]
[365637001,1749815433571,-460.0,0.00021369,4]
[365637002,1749815433586,-460.0,0.00021369,4]
[365637003,1749815433598,-460.0,0.00021369,4]
[365637004,1749815433609,-460.0,0.00021369,4]
[365637005,1749815433620,-460.0,0.00021369,4]
[365637006,1749815433632,-460.0,0.00021369,4]
[365637007,1749815433644,-260.0,0.00021369,4]
[365637008,1749815433657,-460.0,0.00021369,4]
[365637009,1749815433670,-902.13,0.00021369,4]
[365637010,1749815433684,-559.60361192,0.00021369,4]
[365637011,1749815433695,-393.96761662,0.00021369,4]
[365637012,1749815433706,-1261.48,0.00021369,4]
[365637013,1749815433718,-460.0,0.00021369,4]
[365637014,1749815433730,-460.0,0.00021369,4]
[365637015,1749815433744,-462.5,0.00021369,4]
[365637016,1749815433757,-460.0,0.00021369,4]
[365637017,1749815433771,-460.0,0.00021369,4]
[365637018,1749815433783,-460.0,0.00021369,4]
[365637019,1749815433794,-460.0,0.00021369,4]
[365637020,1749815433805,-460.0,0.00021369,4]
[365637021,1749815433817,-460.0,0.00021369,4]
[365637022,1749815433829,-460.0,0.00021369,4]
[365637023,1749815433840,-460.0,0.00021369,4]
[365637024,1749815433851,-460.0,0.00021369,4]
[365637025,1749815433862,-460.0,0.00021369,4]
[365637026,1749815433876,-460.0,0.00021369,4]
[365637027,1749815433887,-460.0,0.00021369,4]
[365637028,1749815433899,-460.0,0.00021369,4]
[365637029,1749815433911,-357.67945617,0.00021369,4]
[365637030,1749815433922,-460.0,0.00021369,4]
[365637031,1749815433934,-665.95,0.00021369,4]
[365637032,1749815433946,-460.0,0.00021369,4]
[365637033,1749815433956,-806.06,0.00021369,4]
[365637034,1749815433968,-460.0,0.00021369,4]
[365637035,1749815433979,-460.0,0.00021369,4]
[365637036,1749815433991,-460.0,0.00021369,4]
[365637037,1749815434002,-460.0,0.00021369,4]
[365637038,1749815434013,-180.90035427,0.00021369,4]
[365637039,1749815434024,-460.0,0.00021369,4]
[365637040,1749815434035,-460.0,0.00021369,4]
[365637041,1749815434047,-460.0,0.00021369,4]
[365637042,1749815434058,-460.0,0.00021369,4]
[365637043,1749815434070,-460.0,0.00021369,4]
[365637044,1749815434081,-460.0,0.00021369,4]
[365637045,1749815434092,-460.0,0.00021369,4]
[365637046,1749815434104,-460.0,0.00021369,4]
[365637047,1749815434116,-460.0,0.00021369,4]
[365637048,1749815434128,-593.59,0.00021369,4]
[365637049,1749815434140,-460.0,0.00021369,4]
[365637050,1749815434151,-460.0,0.00021369,4]
[365637051,1749815434163,-1327.7,0.00021369,4]
[365637052,1749815434175,-460.0,0.00021369,4]
[365637053,1749815434187,-460.0,0.00021369,4]
[365637054,1749815434198,-367.31485423,0.00021369,4]
[365637055,1749815434210,-460.0,0.00021369,4]
[365637056,1749815434222,-460.0,0.00021369,4]
[365637057,1749815434233,-460.0,0.00021369,4]
[365637058,1749815434245,-903.85,0.00021369,4]
[365637059,1749815434257,-460.0,0.00021369,4]
[365637060,1749815434269,-1473.46,0.00021369,4]
[365637061,1749815434280,-2267.75,0.00021438,2]
[365637062,1749815434292,-1454.51,0.00021612,10]
[365637063,1749815434304,-1745.41,0.00021622,10]
[365637064,1749815434316,-2513.39,0.00021632,10]
[365637065,1749815434330,-2094.49,0.00021632,10]
[365637066,1749815434342,-157.05,0.00021642,2]
[365637067,1749815434354,-460.0,0.00021642,4]
[365637068,1749815434365,-460.0,0.00021642,4]
[365637069,1749815434379,-3811.09,0.00021642,4]
[365637070,1749815434391,-784.87,0.00021642,4]
[365637071,1749815434403,-669.49,0.00021642,4]
[365637072,1749815434415,-669.49,0.00021642,4]
[365637073,1749815434427,-1002.43,0.00021642,4]
[365637074,1749815434439,-460.0,0.00021643,4]
[365637075,1749815434585,-460.0,0.00021643,4]
[365637076,1749815434601,-460.0,0.00021643,4]
[365637077,1749815434612,-460.0,0.00021643,4]
[365637078,1749815434622,-1085.57,0.00021643,4]
[365637079,1749815434634,-460.0,0.00021643,4]
[365637080,1749815434643,-460.0,0.00021643,4]
[365637081,1749815434653,-460.0,0.00021643,4]
[365637082,1749815434662,-290.41,0.00021643,4]
[365637083,1749815434672,-460.0,0.00021643,4]
[365637084,1749815434682,-460.0,0.00021643,4]
[365637085,1749815434691,-460.0,0.00021643,4]
[365637086,1749815434701,-902.13,0.00021643,4]
[365637087,1749815434711,-1261.48,0.00021643,4]
[365637088,1749815434720,-460.0,0.00021643,4]
[365637089,1749815434730,-460.0,0.00021643,4]
[365637090,1749815434739,-460.0,0.00021643,4]
[365637091,1749815434749,-460.0,0.00021643,4]
[365637092,1749815434759,-460.0,0.00021643,4]
[365637093,1749815434768,-460.0,0.00021643,4]
[365637094,1749815434778,-460.0,0.00021643,4]
[365637095,1749815434787,-460.0,0.00021643,4]
[365637096,1749815434797,-460.0,0.00021643,4]
[365637097,1749815434806,-460.0,0.00021643,4]
[365637098,1749815434815,-460.0,0.00021643,4]
[365637099,1749815434824,-297.71069959,0.00021643,4]
[365637100,1749815434834,-460.0,0.00021643,4]
[365637101,1749815434844,-460.0,0.00021643,4]
[365637102,1749815434854,-460.0,0.00021643,4]
[365637103,1749815434863,-665.95,0.00021643,4]
[365637104,1749815434872,-460.0,0.00021643,4]
[365637105,1749815434882,-806.06,0.00021643,4]
[365637106,1749815434892,-460.0,0.00021643,4]
[365637107,1749815434901,-320.0,0.00021643,4]
[365637108,1749815434911,-460.0,0.00021643,4]
[365637109,1749815434920,-460.0,0.00021643,4]
[365637110,1749815434929,-320.0,0.00021643,4]
[365637111,1749815434939,-460.0,0.00021643,4]
[365637112,1749815434948,-473.05378082,0.00021643,4]
[365637113,1749815434958,-220.0,0.00021643,4]
[365637114,1749815434967,-460.0,0.00021643,4]
[365637115,1749815434977,-460.0,0.00021643,4]
[365637116,1749815434987,-460.0,0.00021643,4]
[365637117,1749815434996,-460.0,0.00021643,4]
[365637118,1749815435006,-330.0,0.00021643,4]
[365637119,1749815435015,-593.59,0.00021643,4]
[365637120,1749815435024,-460.0,0.00021643,4]
[365637121,1749815435034,-460.0,0.00021643,4]
[365637122,1749815435043,-1327.7,0.00021643,4]
[365637123,1749815435053,-460.0,0.00021643,4]
[365637124,1749815435062,-300.0,0.00021643,4]
[365637125,1749815435072,-539.33759398,0.00021643,4]
[365637126,1749815435082,-460.0,0.00021643,4]
[365637127,1749815435091,-460.0,0.00021643,4]
[365637128,1749815435101,-903.85,0.00021643,4]
[365637129,1749815435110,-460.0,0.00021643,4]
[365637130,1749815435119,-1473.46,0.00021643,4]
[365637131,1749815435129,-669.49,0.00021843,4]
[365637132,1749815435139,-419.54655919,0.000219,2]
[365637133,1749815435148,-960.19082383,0.000219,6]
[365637134,1749815435158,-460.0,0.00021916,4]
[365637135,1749815435167,-460.0,0.00021916,4]
[365637136,1749815435177,-3811.09,0.00021916,4]
[365637137,1749815435187,-784.87,0.00021916,4]
[365637138,1749815435196,-669.49,0.00021916,4]
[365637139,1749815435206,-669.49,0.00021916,4]
[365637140,1749815435215,-1002.43,0.00021916,4]
[365637141,1749815435224,-460.0,0.00021917,4]
[365637142,1749815435234,-460.0,0.00021917,4]
[365637143,1749815435243,-380.0,0.00021917,4]
[365637144,1749815435253,-460.0,0.00021917,4]
[365637145,1749815435263,-1085.57,0.00021917,4]
[365637146,1749815435272,-380.0,0.00021917,4]
[365637147,1749815435281,-460.0,0.00021917,4]
[365637148,1749815435290,-460.0,0.00021917,4]
[365637149,1749815435300,-317.17503896,0.00021917,4]
[365637150,1749815435315,-142.82496104,0.00021917,4]
[365637151,1749815435325,-460.0,0.00021917,4]
[365637152,1749815435336,-460.0,0.00021917,4]
[365637153,1749815435345,-902.13,0.00021917,4]
[365637154,1749815435353,-1261.48,0.00021917,4]
[365637155,1749815435364,-460.0,0.00021917,4]
[365637156,1749815435374,-460.0,0.00021917,4]
[365637157,1749815435384,-460.0,0.00021917,4]
[365637158,1749815435393,-460.0,0.00021917,4]
[365637159,1749815435402,-460.0,0.00021917,4]
[365637160,1749815435410,-300.0,0.00021917,4]
[365637161,1749815435418,-460.0,0.00021917,4]
[365637162,1749815435426,-460.0,0.00021917,4]
[365637163,1749815435434,-460.0,0.00021917,4]
[365637164,1749815435441,-499.65,0.00021917,4]
[365637165,1749815435450,-460.0,0.00021917,4]
[365637166,1749815435459,-460.0,0.00021917,4]
[365637167,1749815435468,-460.0,0.00021917,4]
[365637168,1749815435477,-665.95,0.00021917,4]
[365637169,1749815435486,-460.0,0.00021917,4]
[365637170,1749815435495,-806.06,0.00021917,4]
[365637171,1749815435505,-460.0,0.00021917,4]
[365637172,1749815435514,-460.0,0.00021917,4]
[365637173,1749815435523,-460.0,0.00021917,4]
[365637174,1749815435532,-460.0,0.00021917,4]
[365637175,1749815435541,-300.0,0.00021917,4]
[365637176,1749815435551,-460.0,0.00021917,4]
[365637177,1749815435560,-460.0,0.00021917,4]
[365637178,1749815435569,-460.0,0.00021917,4]
[365637179,1749815435578,-593.59,0.00021917,4]
[365637180,1749815435587,-460.0,0.00021917,4]
[365637181,1749815435596,-460.0,0.00021917,4]
[365637182,1749815435606,-1327.7,0.00021917,4]
[365637183,1749815435616,-460.0,0.00021917,4]
[365637184,1749815435625,-460.0,0.00021917,4]
[365637185,1749815435635,-460.0,0.00021917,4]
[365637186,1749815435644,-903.85,0.00021917,4]
[365637187,1749815435653,-300.0,0.00021917,4]
[365637188,1749815435662,-1473.46,0.00021917,4]
[365637189,1749815435671,-844.94977992,0.00021965,2]
[365637190,1749815435680,-160.0,0.00021965,2]
[365637191,1749815435689,-160.0,0.00021965,2]
[365637192,1749815435699,-669.49,0.00021966,4]
[365637193,1749815435708,-500.0,0.00021996,2]
[365637194,1749815435717,-298827.88205,0.00021999,2]
[365637195,1749815435726,-5426.0,0.00022,2]
[365637196,1749815435736,-5426.0,0.00022,2]
[365637197,1749815435745,-5426.0,0.00022,2]
[365637198,1749815435754,-5426.0,0.00022,2]
[365637199,1749815435764,-5426.0,0.00022,2]
[365637200,1749815435773,-5426.0,0.00022,2]
[365637201,1749815435783,-5426.0,0.00022,2]
[365637202,1749815435792,-5426.0,0.00022,2]
[365637203,1749815435801,-182.0,0.00022,2]
[365637204,1749815435811,-960.19082361,0.00022038,6]
[365637205,1749815435821,-153.62936368,0.00022091,2]
[365637206,1749815435831,-960.19082361,0.00022176,6]
[365637207,1749815435840,-463.686673,0.0002219,2]
[365637208,1749815435850,-300.0,0.0002219,2]
[365637209,1749815435860,-460.0,0.0002219,4]
[365637210,1749815435870,-460.0,0.0002219,4]
[365637211,1749815435880,-3811.09,0.0002219,4]
[365637212,1749815435890,-784.87,0.0002219,4]
[365637213,1749815435900,-669.49,0.0002219,4]
[365637214,1749815435910,-669.49,0.0002219,4]
[365637215,1749815435919,-1002.43,0.0002219,4]
[365637216,1749815435929,-160.0,0.0002219,2]
[365637217,1749815435939,-160.0,0.0002219,2]
[365637218,1749815435949,-160.0,0.0002219,2]
[365637219,1749815435958,-835.28007164,0.0002219,2]
[365637220,1749815435968,-229.78555783,0.0002219,2]
[365637221,1749815435977,-160.0,0.0002219,2]
[365637222,1749815435987,-213.24139183,0.0002219,2]
[365637223,1749815435996,-424.32678023,0.0002219,2]
[365637224,1749815436006,-12531.02669373,0.0002219,2]
[365637225,1749815436015,-460.0,0.00022191,4]
[365637226,1749815436025,-460.0,0.00022191,4]
[365637227,1749815436035,-460.0,0.00022191,4]
[365637228,1749815436044,-572.16,0.00022191,4]
[365637229,1749815436053,-329.89430423,0.00022191,4]
[365637230,1749815436063,-477.05360249,0.00022191,4]
[365637231,1749815436073,-460.0,0.00022191,2]
[365637232,1749815436082,-570.74,0.00022191,4]
[365637233,1749815436092,-460.0,0.00022191,4]
[365637234,1749815436101,-151.0,0.00022191,7]
[365637235,1749815436113,-152.86232,0.00022191,7]
[365637236,1749815436122,-460.0,0.00022191,4]
[365637237,1749815436133,-360.0,0.00022191,4]
[365637238,1749815436143,-460.0,0.00022191,4]
[365637239,1749815436152,-280.0,0.00022191,4]
[365637240,1749815436162,-151.0,0.00022191,7]
[365637241,1749815436171,-460.0,0.00022191,4]
[365637242,1749815436181,-1085.57,0.00022191,4]
[365637243,1749815436191,-460.0,0.00022191,4]
[365637244,1749815436200,-460.0,0.00022191,4]
[365637245,1749815436211,-380.0,0.00022191,4]
[365637246,1749815436221,-460.0,0.00022191,4]
[365637247,1749815436231,-380.0,0.00022191,4]
[365637248,1749815436240,-902.13,0.00022191,4]
[365637249,1749815436250,-1261.48,0.00022191,4]
[365637250,1749815436260,-460.0,0.00022191,4]
[365637251,1749815436269,-329.13684703,0.00022191,4]
[365637252,1749815436279,-151.0,0.00022191,7]
[365637253,1749815436290,-538.98297623,0.00022191,4]
[365637254,1749815436299,-460.0,0.00022191,4]
[365637255,1749815436309,-460.0,0.00022191,4]
[365637256,1749815436319,-460.0,0.00022191,4]
[365637257,1749815436333,-460.0,0.00022191,4]
[365637258,1749815436343,-460.0,0.00022191,4]
[365637259,1749815436352,-460.0,0.00022191,4]
[365637260,1749815436362,-460.0,0.00022191,4]
[365637261,1749815436373,-300.0,0.00022191,4]
[365637262,1749815436384,-665.95,0.00022191,4]
[365637263,1749815436393,-300.0,0.00022191,4]
[365637264,1749815436404,-806.06,0.00022191,4]
[365637265,1749815436414,-460.0,0.00022191,4]
[365637266,1749815436424,-460.0,0.00022191,4]
[365637267,1749815436434,-460.0,0.00022191,4]
[365637268,1749815436445,-360.0,0.00022191,4]
[365637269,1749815436455,-588.65,0.00022191,4]
[365637270,1749815436464,-460.0,0.00022191,4]
[365637271,1749815436474,-386.82,0.00022191,4]
[365637272,1749815436484,-593.59,0.00022191,4]
[365637273,1749815436493,-360.0,0.00022191,4]
[365637274,1749815436503,-460.0,0.00022191,4]
[365637275,1749815436512,-1327.7,0.00022191,4]
[365637276,1749815436522,-460.0,0.00022191,4]
[365637277,1749815436532,-460.0,0.00022191,4]
[365637278,1749815436541,-460.0,0.00022191,4]
[365637279,1749815436551,-903.85,0.00022191,4]
[365637280,1749815436560,-1473.46,0.00022191,4]
[365637281,1749815436570,-258.65444618,0.000222,2]
[365637282,1749815436579,-153.0,0.000222,2]
[365637283,1749815436589,-669.49,0.00022272,4]
[365637284,1749815436598,-669.49,0.00022272,4]
[365637285,1749815436608,-669.49,0.00022272,4]
[365637286,1749815436619,-669.49,0.00022272,4]
[365637287,1749815436629,-669.65,0.00022272,4]
[365637288,1749815436638,-151.0,0.00022273,7]
[365637289,1749815436648,-151.0,0.00022273,7]
[365637290,1749815436658,-273.18552,0.00022273,7]
[365637291,1749815436667,-273.18552,0.00022273,7]
[365637292,1749815436677,-960.19082361,0.00022314,7]
[365637293,1749815436686,-207.4,0.00022332,2]
[365637294,1749815436696,-187.94426926,0.00022366,2]
[365637295,1749815436706,-364.0,0.00022373,2]
[365637296,1749815436715,-223.08,0.000224,2]
[365637297,1749815436725,-3401.63,0.00022413,2]
[365637298,1749815436735,-498.89,0.00022445,3]
[365637299,1749815436746,-960.19082361,0.00022452,7]
[365637300,1749815436756,-153.06190237,0.00022453,2]
[365637301,1749815436766,-5000.0,0.00022453,2]
[365637302,1749815436775,-151.3354925,0.00022453,2]
[365637303,1749815436785,-500.0,0.00022453,2]
[365637304,1749815436794,-637.47389238,0.00022453,2]
[365637305,1749815436804,-500.0,0.00022453,2]
[365637306,1749815436813,-500.0,0.00022453,2]
[365637307,1749815436823,-500.0,0.00022453,2]
[365637308,1749815436833,-500.0,0.00022453,2]
[365637309,1749815436842,-500.0,0.00022453,2]
[365637310,1749815436852,-500.0,0.00022453,2]
[365637311,1749815436862,-252.75982885,0.00022453,2]
[365637312,1749815436871,-498.85,0.00022455,3]
[365637313,1749815436882,-332.56,0.00022455,3]
[365637314,1749815436891,-166.28,0.00022455,3]
[365637315,1749815436901,-171.78,0.00022464,2]
[365637316,1749815436910,-300.0,0.00022464,4]
[365637317,1749815436919,-460.0,0.00022464,4]
[365637318,1749815436929,-3811.09,0.00022464,4]
[365637319,1749815436939,-784.87,0.00022464,4]
[365637320,1749815436949,-1002.43,0.00022464,4]
[365637321,1749815436959,-460.0,0.00022465,4]
[365637322,1749815436969,-151.0,0.00022465,7]
[365637323,1749815436979,-460.0,0.00022465,4]
[365637324,1749815436989,-460.0,0.00022465,4]
[365637325,1749815436998,-460.0,0.00022465,2]
[365637326,1749815437007,-570.74,0.00022465,4]
[365637327,1749815437017,-460.0,0.00022465,4]
[365637328,1749815437027,-460.0,0.00022465,4]
[365637329,1749815437036,-460.0,0.00022465,4]
[365637330,1749815437046,-503.41,0.00022465,4]
[365637331,1749815437055,-1085.57,0.00022465,4]
[365637332,1749815437065,-460.0,0.00022465,4]
[365637333,1749815437074,-360.0,0.00022465,4]
[365637334,1749815437084,-460.0,0.00022465,4]
[365637335,1749815437094,-902.13,0.00022465,4]
[365637336,1749815437104,-1261.48,0.00022465,4]
[365637337,1749815437114,-460.0,0.00022465,4]
[365637338,1749815437124,-460.0,0.00022465,4]
[365637339,1749815437134,-460.0,0.00022465,4]
[365637340,1749815437144,-427.4569787,0.00022465,4]
[365637341,1749815437154,-460.0,0.00022465,4]
[365637342,1749815437163,-460.0,0.00022465,4]
[365637343,1749815437173,-460.0,0.00022465,4]
[365637344,1749815437184,-393.18,0.00022465,4]
[365637345,1749815437196,-665.95,0.00022465,4]
[365637346,1749815437205,-806.06,0.00022465,4]
[365637347,1749815437215,-467.74,0.00022465,4]
[365637348,1749815437224,-460.0,0.00022465,4]
[365637349,1749815437234,-460.0,0.00022465,4]
[365637350,1749815437345,-460.0,0.00022465,4]
[365637351,1749815437365,-593.59,0.00022465,4]
[365637352,1749815437376,-466.58,0.00022465,4]
[365637353,1749815437388,-1327.7,0.00022465,4]
[365637354,1749815437405,-460.0,0.00022465,4]
[365637355,1749815437415,-301.28,0.00022465,4]
[365637356,1749815437424,-460.0,0.00022465,4]
[365637357,1749815437434,-903.85,0.00022465,4]
[365637358,1749815437443,-1473.46,0.00022465,4]
[365637359,1749815437453,-290.359547,0.00022466,7]
[365637360,1749815437463,-151.0,0.00022466,7]
[365637361,1749815437473,-151.0,0.00022466,7]
[365637362,1749815437482,-500.0,0.00022466,2]
[365637363,1749815437491,-500.0,0.00022466,2]
[365637364,1749815437501,-500.0,0.00022466,2]
[365637365,1749815437510,-500.0,0.00022466,2]
[365637366,1749815437519,-500.0,0.00022466,2]
[365637367,1749815437529,-500.0,0.00022466,2]
[365637368,1749815437539,-500.0,0.00022466,2]
[365637369,1749815437548,-500.0,0.00022466,2]
[365637370,1749815437558,-500.0,0.00022466,2]
[365637371,1749815437567,-500.0,0.00022466,2]
[365637372,1749815437577,-628.74700866,0.00022466,2]
[365637373,1749815437586,-500.0,0.00022466,2]
[365637374,1749815437596,-500.0,0.00022466,2]
[365637375,1749815437605,-500.0,0.00022466,2]
[365637376,1749815437615,-500.0,0.00022466,2]
[365637377,1749815437625,-500.0,0.00022466,2]
[365637378,1749815437635,-500.0,0.00022466,2]
[365637379,1749815437645,-500.0,0.00022466,2]
[365637380,1749815437654,-500.0,0.00022466,2]
[365637381,1749815437663,-500.0,0.00022466,2]
[365637382,1749815437672,-500.0,0.00022466,2]
[365637383,1749815437687,-500.0,0.00022466,2]
[365637385,1749815437696,-500.0,0.00022466,2]
[365637387,1749815437706,-500.0,0.00022466,2]
[365637388,1749815437715,-500.0,0.00022466,2]
[365637389,1749815437724,-500.0,0.00022466,2]
[365637390,1749815437733,-500.0,0.00022466,2]
[365637391,1749815437743,-500.0,0.00022466,2]
[365637392,1749815437752,-500.0,0.00022466,2]
[365637393,1749815437763,-500.0,0.00022466,2]
[365637394,1749815437773,-500.0,0.00022466,2]
[365637395,1749815437782,-500.0,0.00022466,2]
[365637396,1749815437791,-500.0,0.00022466,2]
[365637398,1749815437800,-500.0,0.00022466,2]
[365637399,1749815437809,-153.62936366,0.00022493,2]
[365637400,1749815437819,-153.0,0.00022501,2]
[365637402,1749815437828,-153.0,0.00022501,2]
[365637404,1749815437837,-153.0,0.00022501,2]
[365637406,1749815437846,-153.0,0.00022501,2]
[365637408,1749815437856,-153.0,0.00022501,2]
[365637410,1749815437865,-153.0,0.00022501,2]
[365637412,1749815437875,-153.0,0.00022501,2]
[365637414,1749815437884,-153.0,0.00022501,2]
[365637416,1749815437894,-153.0,0.00022502,2]
[365637418,1749815437903,-153.0,0.00022502,2]
[365637419,1749815437912,-153.0,0.00022502,2]
[365637422,1749815437922,-153.0,0.00022505,2]
[365637424,1749815437931,-153.0,0.00022505,2]
[365637426,1749815437941,-153.0,0.00022505,2]
[365637428,1749815437950,-153.0,0.00022505,2]
[365637430,1749815437959,-153.0,0.00022505,2]
[365637432,1749815437969,-153.0,0.00022521,2]
[365637434,1749815437979,-153.0,0.00022521,2]
[365637436,1749815437988,-153.0,0.00022521,2]
[365637438,1749815437998,-153.0,0.00022521,2]
[365637440,1749815438007,-153.0,0.00022521,2]
[365637442,1749815438017,-306.0,0.00022521,2]
[365637444,1749815438026,-153.0,0.00022521,2]
[365637446,1749815438036,-158.7816813,0.00022521,2]
[365637448,1749815438045,-176.8752352,0.00022521,2]
[365637449,1749815438055,-153.0,0.00022521,2]
[365637451,1749815438065,-573.6747916,0.00022521,2]
[365637452,1749815438075,-158.8399287,0.00022521,2]
[365637454,1749815438085,-176.9539549,0.00022521,2]
[365637456,1749815438095,-573.6747916,0.00022521,2]
[365637458,1749815438104,-158.8399287,0.00022521,2]
[365637460,1749815438114,-176.9539549,0.00022521,2]
[365637462,1749815438123,-573.6747916,0.00022521,2]
[365637464,1749815438135,-158.6651865,0.00022521,2]
[365637466,1749815438144,-572.8368268,0.00022521,2]
[365637468,1749815438155,-176.7177958,0.00022521,2]
[365637470,1749815438164,-306.0,0.00022521,2]
[365637472,1749815438174,-153.0,0.00022521,2]
[365637474,1749815438184,-153.0,0.00022521,2]
[365637476,1749815438193,-151.0,0.0002254,7]
[365637478,1749815438203,-152.244456,0.0002254,7]
[365637480,1749815438213,-1000.0,0.00022544,2]
[365637482,1749815438222,-960.19082361,0.0002259,7]
[365637484,1749815438232,-364.0,0.00022665,2]
[365637486,1749815438242,-960.19082361,0.00022728,7]
[365637488,1749815438251,-249.04,0.00022729,3]